Cogmind - Beta 10.1 @@@ ROGUE MODE // 2020.10.26 @ 10:38:45 Player: Boris Result: Self-destructed Performance ------------- Evolutions (3) 1500 Regions Visited (9) 1800 Robots Destroyed (146) 730 Value Destroyed (5745) 5745 Prototype IDs (28) 560 Alien Tech Used (0) 0 Bonus (1486) 1486 TOTAL SCORE: 11821 Bonus ------- High Alert Combat Kills 598 Follower Combat Kills 58 Entered Garrisons 200 Used RIF Installer 500 Aligned with FarCom 300 Friendly Fire -170 Cogmind --------- Core Integrity 354/700 Matter 272/300 Energy 283/290 System Corruption 10% Temperature Cool (2) Movement Treading (180) Ox1 Location -7/Lower Caves Parts ------- > --- POWER (1) -------- Reinforced Deuterium Engine > --- PROPULSION (2) --- Improved Heavy Treads > --- UTILITY (7) ------ Improved Heat Sink Large Storage Unit Large Storage Unit High-capacity Storage Unit Weapon Cycler Nanoactuators Relay Coupler [NC] (27) > --- WEAPON (3) ------- Precision Shock Rifle Autogun Advanced EMP Blaster > --- INVENTORY (24) --- Light Nuclear Core Improved Deuterium Engine Light Treads Light Treads Combat Airjet Improved Cooling System High-capacity Storage Unit High-capacity Matter Pod (200) Enhanced Optical Array Improved Sensor Array Experimental Sensor Array Improved Propulsion Shielding Improved Light Armor Plating Improved Light Armor Plating Relay Coupler [Grunt] (29) Relay Coupler [Grunt] (25) Improved EM Pulse Cannon Heavy Ion Cannon Heavy Ion Cannon Plasma Cannon Flak Cannon Remote Datajack Axe Peak State ------------ > --- POWER ------------ Improved Deuterium Engine > --- PROPULSION ------- Improved Heavy Treads > --- UTILITY ---------- Large Storage Unit Large Storage Unit High-capacity Storage Unit Experimental Sensor Array Improved Signal Interpreter Modified TNC Hacking Suite > --- WEAPON ----------- Heavy Ion Cannon Gauss Rifle Gauss Rifle > --- INVENTORY -------- Deuterium Engine Improved Deuterium Engine Improved Heavy Treads Combat Airjet Superbattery High-capacity Matter Pod Improved Sensor Array Weapon Cycler Improved Light Armor Plating Improved Light Armor Plating Relay Coupler [NC] Relay Coupler [Grunt] Relay Coupler [Grunt] Relay Coupler [Hunter] PSU Rigger Precision Shock Rifle Improved EM Pulse Cannon HERF Cannon Flak Cannon Advanced EMP Blaster Proton Missile Launcher Remote Datajack Axe [Rating: 60] Favorites ----------- Power Light Angular Momentum Engine Engine Light Angular Momentum Engine Power Core Light Nuclear Core Propulsion Light Treads Treads Light Treads Utility Large Storage Unit Device Experimental Sensor Array Storage Large Storage Unit Processor Modified TNC Hackware Relay Coupler [NC] Protection Light Armor Plating Weapon Gauss Rifle Energy Gun Heavy EM Shotgun Energy Cannon Heavy Ion Cannon Ballistic Gun Gauss Rifle Launcher Proton Missile Launcher Special Weapon Mining Laser Slashing Weapon Axe Build | -11 -10 -10 -10 -9 -8 -8 -7 -7 -7 ------- Run | Scr Mat Min Exi Min Mat Gar Fac Low Low Slots Evolved 6 | . . . . . 4 . 2 . . Power . | . . . . . . . . . . Propulsion . | . . . . . . . . . . Utility 5 | . . . . . 3 . 2 . . Weapon 1 | . . . . . 1 . . . . Parts Attached 165 | 7 8 9 3 . 32 24 52 8 22 Power 8 | 1 1 1 . . 1 . 2 . 2 Engine 7 | 1 1 1 . . 1 . 1 . 2 Core 1 | . . . . . . . 1 . . Reactor . | . . . . . . . . . . Propulsion 24 | 2 4 2 2 . 6 3 3 . 2 Treads 24 | 2 4 2 2 . 6 3 3 . 2 Leg . | . . . . . . . . . . Wheel . | . . . . . . . . . . Hover . | . . . . . . . . . . Flight . | . . . . . . . . . . Utility 53 | 2 1 . 1 . 7 4 27 4 7 Device 19 | . . . . . . 2 10 1 6 Storage 11 | 2 1 . 1 . 3 1 1 2 . Processor 2 | . . . . . 1 . 1 . . Hackware 5 | . . . . . . . 5 . . Protection 16 | . . . . . 3 1 10 1 1 Artifact . | . . . . . . . . . . Weapon 80 | 2 2 6 . . 18 17 20 4 11 Energy Gun 17 | 2 . 2 . . 6 4 1 . 2 Energy Cannon 19 | . 1 . . . 4 2 6 2 4 Ballistic Gun 16 | . 1 4 . . . 2 6 . 3 Ballistic Cannon . | . . . . . . . . . . Launcher 15 | . . . . . 3 6 2 2 2 Special Weapon 6 | . . . . . 2 . 4 . . Impact Weapon . | . . . . . . . . . . Slashing Weapon 7 | . . . . . 3 3 1 . . Piercing Weapon . | . . . . . . . . . . Special Melee Weapon . | . . . . . . . . . . Unidentified Prototypes 4 | . . . . . 3 . 1 . . Parts Lost 23 | . 1 3 . . 4 5 2 . 8 Power 5 | . . 1 . . 1 . 1 . 2 Propulsion 1 | . . . . . 1 . . . . Utility 7 | . . . . . 2 2 1 . 2 Weapon 10 | . 1 2 . . . 3 . . 4 Highest Loss Streak 3 | . 1 2 . . 1 3 1 . 3 Average Slot Usage (%) 97 | . 99 97 100 100 95 99 97 92 90 Engine 9 | . 14 13 14 14 8 9 6 7 6 Treads 18 | . 27 28 28 28 17 18 13 7 6 Device 3 | . . . . . . 3 6 6 10 Storage 25 | . 28 28 28 28 24 28 23 23 23 Processor 7 | . . . . . 8 9 12 15 10 Hackware 2 | . . . . . . . 6 7 7 Protection 2 | . . . . . 8 3 2 . . Energy Gun 5 | . 11 9 . . 13 9 . . 2 Energy Cannon 2 | . 8 1 . . 3 . 3 2 5 Ballistic Gun 14 | . 8 15 28 28 6 12 18 15 10 Naked Turns . | . . . . . . . . . . Heaviest Build 96 | 15 29 29 57 57 90 90 92 90 96 Greatest Support 75 | 40 40 40 40 40 40 40 75 75 75 Greatest Overweight (x) 31 | 1 . . 1 1 4 2 2 1 31 Average Overweight (x) . | . . . . 1 1 1 1 1 1 Largest Inventory Capacity 26 | 8 12 12 18 18 24 24 24 26 24 Average Capacity 19 | 6 8 12 12 18 21 24 24 24 24 Most Carried 25 | 5 12 12 13 13 24 24 24 25 24 Average Carried 18 | 2 8 11 12 12 19 23 23 23 22 Final Capacity 24 | 8 12 12 18 18 24 24 24 24 24 Final Carried 24 | 5 12 12 13 13 24 24 24 23 23 Class Distribution -------------------- 33% | Mutant 12% | Bothacker-Skirmisher 11% | Bothacker-Mutant 11% | Hauler-Mutant 10% | Scavenger-Mutant 10% | Hauler-Skirmisher 8% | Bothacker-Tank Dominant Class ---------------- Mutant | -10/Materials Mutant | -10/Mines Mutant | -10/Exiles Mutant | -9/Mines Scavenger-Mutant | -8/Materials Bothacker-Mutant | -8/Garrison Bothacker-Skirmisher | -7/Factory Hauler-Mutant | -7/Lower Caves Hauler-Skirmisher | -7/Lower Caves Resources | -11 -10 -10 -10 -9 -8 -8 -7 -7 -7 ----------- Run | Scr Mat Min Exi Min Mat Gar Fac Low Low Matter Collected 3841 | 270 202 96 30 28 609 477 1434 209 486 Remotely . | . . . . . . . . . . Salvage Created 5531 | 100 668 269 . 73 1528 633 1397 219 644 Parts 293 | 3 47 12 . 3 92 27 73 6 30 Haulers Intercepted 4 | . 1 . . . 2 . 1 . . Recyclers Shooed 4 | . . . . . 2 . 2 . . Parts Field Recycled . | . . . . . . . . . . Retrieved Matter . | . . . . . . . . . . Parts Self-Destructed 18 | . . . . . . . . 10 8 Prevented 18 | . . . . . . . . 3 15 Kills | -11 -10 -10 -10 -9 -8 -8 -7 -7 -7 ------- Run | Scr Mat Min Exi Min Mat Gar Fac Low Low Combat Hostiles Destroyed 120 | . 15 9 . . 32 17 26 4 17 Melee 1 | . . . . . . 1 . . . Guns 69 | . 10 6 . . 21 8 20 . 4 Cannons 13 | . 3 2 . . 1 . 2 . 5 AOE 36 | . 2 1 . . 9 8 4 4 8 Classes Destroyed 14 | 1 5 . . . 4 1 1 . 2 Worker 6 | . . . . . 3 . 3 . . Builder 5 | . 1 1 . . 3 . . . . Hauler 4 | . 1 . . . 2 . 1 . . Recycler 3 | 1 . . . 1 1 . . . . Operator 3 | . 2 . . . 1 . . . . Watcher 4 | . . . . . 2 . 2 . . Swarmer 39 | . 3 5 . . 10 4 6 . 11 Grunt 51 | . 12 4 . . 11 5 14 4 1 Brawler 1 | . . . . . . . . . 1 Duelist 5 | . . . . . . 4 . . 1 Sentry 16 | . . . . . 9 3 3 . 1 Hunter 4 | . . . . . 2 1 . . 1 Programmer 4 | . . . . . . . 4 . . Master Thief 1 | . . . . . . . . . 1 Best Kill Streak 9 | 1 5 3 . 1 9 4 6 4 6 Combat Bots Only 7 | . 5 3 . . 7 4 5 4 6 Max Kills in Single Turn 3 | 1 2 1 . 1 3 3 2 2 2 Gunslinging . | . . . . . . . . . . Exploded 3 | . 2 1 . . 3 3 2 2 2 Melee 1 | . . . . . . 1 . . . Uniques/NPCs Destroyed . | . . . . . . . . . . Combat | -11 -10 -10 -10 -9 -8 -8 -7 -7 -7 -------- Run | Scr Mat Min Exi Min Mat Gar Fac Low Low Damage Taken 4913 | . 327 463 . . 1278 445 1279 55 1066 Core 629 | . 38 74 . . 74 97 149 18 179 Absorbed by Shields . | . . . . . . . . . . Core Remaining (%) 74 | 100 . . . 55 . 68 . . . Volleys Fired 390 | 5 50 35 . . 90 39 87 20 64 Largest 3 | 2 2 2 . . 3 3 3 2 3 Hottest 212 | 80 80 80 . . 163 163 121 65 212 Shots Fired 751 | 10 97 66 . . 179 69 208 23 99 Gun 569 | 10 73 44 . . 153 49 175 6 59 Cannon 112 | . 24 22 . . 13 5 14 11 23 Launcher 53 | . . . . . 7 15 8 6 17 Special 17 | . . . . . 6 . 11 . . Kinetic 403 | . 24 26 . . 96 25 175 6 51 Thermal 115 | . 24 22 . . 13 11 13 11 21 Explosive 12 | . . . . . 7 5 . . . Electromagnetic 210 | 10 49 18 . . 63 28 9 6 27 Robot Hit Streak 20 | 3 15 7 . . 20 13 13 5 10 Robot Miss Streak 5 | 2 4 2 . . 3 2 5 2 4 Penetration Max 1 | . . . . . . . 1 . . Secondary Targets 6 | . . 1 . . 2 1 2 . . Max Gunslinging Chain 1 | . . 1 . . 1 1 1 . . Shots Hit Robots 468 | 7 69 40 . . 129 44 129 5 45 Core Hits 259 | 2 29 15 . 3 77 39 56 8 30 Critical Hits 12 | . 1 . . . 2 . 5 . 4 Critical Kills 3 | . . . . . 1 . 1 . 1 Critical Parts Destroyed 7 | . 1 . . . 1 . 3 . 2 Melee Attacks 19 | . . . . . 8 9 2 . . Impact . | . . . . . . . . . . Slashing 19 | . . . . . 8 9 2 . . Piercing . | . . . . . . . . . . Sneak Attacks 2 | . . . . . 2 . . . . Combat Hostiles . | . . . . . . . . . . Follow-up Attacks . | . . . . . . . . . . Damage Inflicted 12606 | 95 1042 523 . 33 3484 1984 3439 400 1606 Guns 6373 | 93 570 296 . . 1923 518 2400 87 486 Cannons 1326 | . 289 161 . . 150 63 367 . 296 Explosions 4460 | . 142 46 . . 1118 1353 664 313 824 Melee 320 | . . . . . 270 50 . . . Ramming 127 | 2 41 20 . 33 23 . 8 . . Kinetic 4405 | . 115 135 . . 1072 200 2400 87 396 Thermal 2032 | . 431 207 . . 258 302 496 58 280 Explosive 1795 | . . . . . 894 901 . . . Electromagnetic 3927 | 93 455 161 . . 967 531 535 255 930 Impact . | . . . . . . . . . . Slashing 320 | . . . . . 270 50 . . . Piercing . | . . . . . . . . . . Highest Corruption 10 | . . . . . . 1 4 4 10 Average Corruption 2 | . . . . . . 1 1 4 4 Corruption Purged . | . . . . . . . . . . Effects 56 | . . . . . . 1 10 17 28 Message Errors 19 | . . . . . . 1 4 6 8 Matter Fused 6 | . . . . . . . 1 . 5 Heat Flow Errors 12 | . . . . . . . 2 6 4 Energy Discharges 4 | . . . . . . . 1 . 3 Data Loss (minor) 9 | . . . . . . . 2 4 3 Misfires 1 | . . . . . . . . . 1 Targeting Errors 4 | . . . . . . . . 1 3 Weapon Failures 1 | . . . . . . . . . 1 Overload Shots . | . . . . . . . . . . Overflow Damage 234 | . . . . . 175 32 5 . 22 Projectiles 2 | . . . . . . . . . 2 Explosions 159 | . . . . . 102 32 5 . 20 Melee 73 | . . . . . 73 . . . . Knockbacks . | . . . . . . . . . . Impact . | . . . . . . . . . . Kinetic . | . . . . . . . . . . Secondary . | . . . . . . . . . . Self-Inflicted Damage 471 | . 53 18 . . 175 53 5 18 149 Shots 20 | . 1 1 . . 5 2 2 1 8 Rammed 24 | 1 6 7 . 5 4 . 1 . . Targets Rammed 25 | 1 6 8 . 5 4 . 1 . . Kicked . | . . . . . . . . . . Crushed 1 | . . 1 . . . . . . . Highest Temperature 351 | 54 160 243 . . 351 274 249 231 322 Average Temperature 72 | 25 53 87 . . 76 75 60 76 102 Received Heat Transfer 1194 | . 111 162 . . 315 99 396 18 93 Effects 4 | . . . . . 2 2 . . . Energy Bleed 1 | . . . . . 1 . . . . Interference 3 | . . . . . 1 2 . . . Siege Activations . | . . . . . . . . . . Robots Corrupted 1 | . . . . . 1 . . . . Combat Hostiles 1 | . . . . . 1 . . . . Parts Fried 20 | . . 2 . . 6 6 1 3 2 Impact Corruptions . | . . . . . . . . . . Robots Melted . | . . . . . . . . . . Combat Hostiles . | . . . . . . . . . . Parts Melted 2 | . 1 . . . 1 . . . . Heat Transferred 3313 | . 742 333 . . 374 570 644 100 550 Parts Sabotaged . | . . . . . . . . . . Parts Stolen 5 | . . . . . . . . 1 4 Parts Stripped . | . . . . . . . . . . Power Chain Reactions 12 | . 1 1 . . 4 3 1 1 1 Missiles Intercepted . | . . . . . . . . . . Alert | -11 -10 -10 -10 -9 -8 -8 -7 -7 -7 ------- Run | Scr Mat Min Exi Min Mat Gar Fac Low Low Peak Influence 1119 | 5 273 195 . 79 511 1119 790 . . Initial 587 | . 3 30 . . . 332 587 . . Average 336 | 1 171 59 . 22 134 791 517 . . Maximum Alert Level 4 | . 1 . . . 2 4 3 . . Low Security (%) 45 | 100 65 100 . 100 73 . . . . Level 1 13 | . 34 . . . 24 13 6 . . Level 2 29 | . . . . . 2 22 89 . . Level 3 9 | . . . . . . 51 4 . . Level 4 2 | . . . . . . 12 . . . Level 5 . | . . . . . . . . . . High Security . | . . . . . . . . . . Max Security . | . . . . . . . . . . Squads Dispatched 22 | . 5 . . . 8 . 9 . . Investigation 10 | . 3 . . . 3 . 4 . . Extermination 3 | . . . . . . . 3 . . Reinforcement 5 | . 2 . . . 2 . 1 . . Assault 1 | . . . . . . . 1 . . Garrison 3 | . . . . . 3 . . . . Intercept . | . . . . . . . . . . Construction Impeded 1 | . . . . . . . 1 . . Haulers Reinforced . | . . . . . . . . . . Stealth | -11 -10 -10 -10 -9 -8 -8 -7 -7 -7 --------- Run | Scr Mat Min Exi Min Mat Gar Fac Low Low Distress Signals 6 | . 4 . . . 1 . 1 . . Communications Jammed . | . . . . . . . . . . Distress Signals . | . . . . . . . . . . Times Spotted 187 | . 32 9 . 4 45 22 40 3 32 Peak Tracking Total 8 | . 5 3 . 3 8 4 4 4 7 Tactical Retreats 10 | . 2 . . 1 1 1 1 2 2 Traps | -11 -10 -10 -10 -9 -8 -8 -7 -7 -7 ------- Run | Scr Mat Min Exi Min Mat Gar Fac Low Low Traps Triggered 7 | . 1 . . . 1 5 . . . Indirectly . | . . . . . . . . . . Trap Hack Attempts . | . . . . . . . . . . Triggered . | . . . . . . . . . . Disarmed . | . . . . . . . . . . Reprogrammed . | . . . . . . . . . . Reused . | . . . . . . . . . . Traps Extracted . | . . . . . . . . . . Installed . | . . . . . . . . . . Triggered 4 | . . . . 1 . . . 3 . Power Sources Rigged 3 | . . . . . . 3 . . . Exploded 2 | . . . . . . 2 . . . Machines | -11 -10 -10 -10 -9 -8 -8 -7 -7 -7 ---------- Run | Scr Mat Min Exi Min Mat Gar Fac Low Low Machines Disabled 18 | . 1 3 . . 3 7 4 . . Max in Single Turn 1 | . 1 1 . . 1 1 1 . . Garrison Access 4 | . . . . . . . 4 . . Garrison Relay 4 | . . . . . . 4 . . . Phase Generator 1 | . . . . . . 1 . . . Machines Sabotaged . | . . . . . . . . . . Garrisons Compromised . | . . . . . . . . . . Overloaded Fab Kills . | . . . . . . . . . . Fab Network Shutdowns . | . . . . . . . . . . Hacking | -11 -10 -10 -10 -9 -8 -8 -7 -7 -7 --------- Run | Scr Mat Min Exi Min Mat Gar Fac Low Low Machines Accessed 31 | . 9 . 2 . 7 . 13 . . Terminals 16 | . 6 . . . 4 . 6 . . Fabricators 2 | . . . . . . . 2 . . Repair Stations 3 | . 1 . . . 1 . 1 . . Recycling Units 2 | . 2 . . . . . . . . Scanalyzers 1 | . . . . . 1 . . . . Garrison Access 5 | . . . . . 1 . 4 . . Total Hacks 81 | . 26 . 2 . 21 . 32 . . Successful 44 | . 14 . 2 . 14 . 14 . . Failed 36 | . 11 . . . 7 . 18 . . Catastrophic 5 | . . . . . 2 . 3 . . Database Lockouts 1 | . 1 . . . . . . . . Manual 45 | . 15 . 1 . 13 . 16 . . Terminals 53 | . 20 . . . 13 . 20 . . Fabricators 6 | . . . . . . . 6 . . Repair Stations 6 | . 2 . . . 2 . 2 . . Recycling Units 4 | . 4 . . . . . . . . Scanalyzers 3 | . . . . . 3 . . . . Garrison Access 7 | . . . . . 3 . 4 . . Terminal Hacks 16 | . 7 . 2 . 3 . 4 . . Record 1 | . . . 1 . . . . . . Part Schematic 1 | . 1 . . . . . . . . Robot Analysis 4 | . 2 . . . 1 . 1 . . Branch Access Points 1 | . . . . . . . 1 . . Machine Index 1 | . . . . . . . 1 . . Unreport Threat 1 | . . . . . 1 . . . . Locate Traps 1 | . 1 . . . . . . . . Hauler Manifests 1 | . 1 . . . . . . . . Registered Components 1 | . 1 . . . . . . . . Zone Layout 3 | . 1 . . . 1 . 1 . . EX-Prototype ID Bank 1 | . . . 1 . . . . . . Fabricator Hacks 2 | . . . . . . . 2 . . Build 2 | . . . . . . . 2 . . Repair Station Hacks 4 | . 2 . . . 2 . . . . Scan Component 2 | . 1 . . . 1 . . . . Repair 2 | . 1 . . . 1 . . . . Recycling Unit Hacks 2 | . 2 . . . . . . . . Report Inventory 1 | . 1 . . . . . . . . Retrieve Components 1 | . 1 . . . . . . . . Scanalyzer 3 | . . . . . 3 . . . . Insert Component 2 | . . . . . 2 . . . . Analyze 1 | . . . . . 1 . . . . Garrison Access Hacks 5 | . . . . . 1 . 4 . . Unlock Access 1 | . . . . . 1 . . . . Seal Access 4 | . . . . . . . 4 . . Unauthorized Hacks 12 | . 3 . . . 5 . 4 . . Terminals 8 | . 2 . . . 4 . 2 . . Track 1 | . 1 . . . . . . . . Assimilate 1 | . . . . . . . 1 . . Botnet 5 | . 1 . . . 3 . 1 . . Disrupt 1 | . . . . . 1 . . . . Fabricators 2 | . . . . . . . 2 . . Download 2 | . . . . . . . 2 . . Repair Stations . | . . . . . . . . . . Recycling Units 1 | . 1 . . . . . . . . Tunnel 1 | . 1 . . . . . . . . Scanalyzers . | . . . . . . . . . . Garrison Access 1 | . . . . . 1 . . . . Eject 1 | . . . . . 1 . . . . Data Cores Recovered 1 | . . . . . 1 . . . . Used . | . . . . . . . . . . Hacking Detections 22 | . 7 . . . 6 . 9 . . Full Trace Events 4 | . 1 . . . 1 . 2 . . Feedback Events . | . . . . . . . . . . Feedback Blocked . | . . . . . . . . . . Robot Schematics Acquired . | . . . . . . . . . . Robots Built . | . . . . . . . . . . Matter . | . . . . . . . . . . Time . | . . . . . . . . . . Total Robot Build Rating . | . . . . . . . . . . Part Schematics Acquired 4 | . 1 . . . 1 . 2 . . Parts Built 3 | . . . . . . . 3 . . Matter 468 | . . . . . . . 468 . . Time 97 | . . . . . . . 97 . . Total Part Build Rating 21 | . . . . . . . 21 . . Parts Repaired 2 | . 1 . . . 1 . . . . Time 58 | . 26 . . . 32 . . . . Parts Recycled . | . . . . . . . . . . Recycled Matter . | . . . . . . . . . . Retrieved Matter . | . . . . . . . . . . Retrieved Components 7 | . 7 . . . . . . . . Parts Scanalyzed 1 | . . . . . 1 . . . . Part Schematics Acquired 1 | . . . . . 1 . . . . Parts Damaged . | . . . . . . . . . . Bothacking | -11 -10 -10 -10 -9 -8 -8 -7 -7 -7 ------------ Run | Scr Mat Min Exi Min Mat Gar Fac Low Low Used RIF Installer 1 | . . . . . . 1 . . . Robots Hacked 6 | . . . . . . . 6 . . Non-combat 3 | . . . . . . . 3 . . Combat 3 | . . . . . . . 3 . . Robot Hacks Applied 8 | . . . . . . . 8 . . map_route 1 | . . . . . . . 1 . . relay_feed 2 | . . . . . . . 2 . . link_fov 1 | . . . . . . . 1 . . reboot_system 1 | . . . . . . . 1 . . overwrite_iff 2 | . . . . . . . 2 . . streamctrl_low 1 | . . . . . . . 1 . . Relay Couplers Released 22 | . . . . . 4 18 . . . Ejected 4 | . . . . . 4 . . . . Machine Destruction 18 | . . . . . . 18 . . . Attached 3 | . . . . . . . 3 . . Robots Rewired . | . . . . . . . . . . Allies Hacked . | . . . . . . . . . . Hacks Repelled . | . . . . . . . . . . Allies | -11 -10 -10 -10 -9 -8 -8 -7 -7 -7 -------- Run | Scr Mat Min Exi Min Mat Gar Fac Low Low Total Allies 7 | . . . . 3 . . 4 . . Largest Group 3 | . . . . 3 2 . 2 . . Highest-Rated Group 40 | . . . . 40 32 . 26 . . Highest-Rated Ally 20 | . . . . 16 16 . 20 . . Total Orders 4 | . . . . . 1 . 3 . . STAY 2 | . . . . . 1 . 1 . . FOLLOW 1 | . . . . . . . 1 . . AID 1 | . . . . . . . 1 . . Ally Attacks 28 | . . . . 11 13 . 4 . . Total Damage 321 | . . . . 123 138 . 60 . . Kills 5 | . . . . 4 1 . . . . Allies Corrupted . | . . . . . . . . . . Allies Melted . | . . . . . . . . . . Intel | -11 -10 -10 -10 -9 -8 -8 -7 -7 -7 ------- Run | Scr Mat Min Exi Min Mat Gar Fac Low Low Robot Analysis Total 4 | . 2 . . . 1 . 1 . . Derelict Logs Recovered 4 | . . 2 . 2 . . . . . Drone Launches . | . . . . . . . . . . Drone Recoveries . | . . . . . . . . . . Exploration | -11 -10 -10 -10 -9 -8 -8 -7 -7 -7 ------------- Run | Scr Mat Min Exi Min Mat Gar Fac Low Low Turns Passed 13554 | 110 1603 1326 677 1081 1959 1829 3130 923 916 Spaces Moved 6559 | 57 848 735 412 595 727 820 1529 452 384 Core 14 | 13 . . . . . . . . 1 Treads 6545 | 44 848 735 412 595 727 820 1529 452 383 Legs . | . . . . . . . . . . Wheels . | . . . . . . . . . . Hover . | . . . . . . . . . . Flight . | . . . . . . . . . . Fastest Speed 50 | 50 160 160 160 180 180 180 180 180 160 Average Speed 177 | 139 160 160 162 180 190 199 180 180 183 Slowest Speed 1600 | 160 160 160 180 180 240 200 200 180 1600 Overloaded Moves . | . . . . . . . . . . Propulsion Burnouts . | . . . . . . . . . . Robots Hopped . | . . . . . . . . . . Cave-ins Triggered . | . . . . . . . . . . Exploration Rate (%) 67 | 6 98 96 87 92 59 81 40 60 53 Regions Visited 9 Branch Regions 5 Pre-discovered Areas 3 | . 1 1 1 . . . . . . Known Exits Taken 3 | . . . . . 1 . 1 1 . Unknown Exits Taken 5 | 1 1 1 1 1 . . . . . Scrap Searched 10 | . . . . 2 . . . 5 3 Spaces Dug 42 | . . . . . 28 . 2 6 6 Terrain Destroyed 241 | . 10 4 . . 79 120 6 12 10 Melee 7 | . . . . . 5 . 2 . . Projectile 19 | . . . . . 6 . 2 6 5 AOE 215 | . 10 4 . . 68 120 2 6 5 Terrain Rammed . | . . . . . . . . . . Walls Destroyed . | . . . . . . . . . . Machines Disabled . | . . . . . . . . . . Actions | -11 -10 -10 -10 -9 -8 -8 -7 -7 -7 --------- Run | Scr Mat Min Exi Min Mat Gar Fac Low Low Total 7761 | 74 1003 821 422 602 1108 934 1751 535 511 Wait 430 | . 69 27 . 1 203 9 42 52 27 Move 6551 | 57 847 734 411 594 726 819 1528 451 384 Hop . | . . . . . . . . . . Pick Up 88 | 5 13 3 4 1 24 12 14 2 10 Fast Attach 33 | 7 2 2 . . 8 . 8 . 6 Attach 26 | . 1 3 . . 6 5 7 . 4 Detach 7 | . . . . . 4 . 3 . . Swap 106 | . 5 4 3 . 18 19 37 8 12 Drop 74 | . 10 5 4 1 17 9 22 2 4 Fire 390 | 5 50 35 . . 90 39 87 20 64 Melee 19 | . . . . . 8 9 2 . . Ram . | . . . . . . . . . . Kick . | . . . . . . . . . . Crush 24 | . 6 8 . 5 4 . 1 . . Escape Stasis 8 | . . . . . . 8 . . . Rewire 2 | . . . . . . 2 . . . Trap 3 | . . . . . . 3 . . . Miscellaneous . | . . . . . . . . . . Route ------- -11/Scrapyard -10/Materials (discovered 4 exits: [*Mat x3] / [*Min]) -10/Mines (discovered 2 exits: [*Mat] / *Exi) -10/Exiles -9/Mines (discovered 2 exits: *Mat x2) -8/Materials (discovered 4 exits: *Fac x2 / [*Sto] / Gar) -8/Garrison (discovered 2 exits: *Fac x2) -7/Factory (discovered 4 exits: *Fac x2 / *Low x2) -7/Lower Caves -7/Lower Caves (discovered 1 exit: *Fac) History --------- Turn | Location | Event 11 | -11/Scrapyard | Discovered new exit (range 15) 111 | -11/Scrapyard | Entered Materials 302 | -10/Materials | Build established: Mutant 435 | -10/Materials | Central database locked down 577 | -10/Materials | Discovered new exit (range 16) 867 | -10/Materials | Discovered new exit (range 6) 1097 | -10/Materials | Discovered new exit (range 5) 1317 | -10/Materials | Repaired Lgt. Treads 1442 | -10/Materials | Discovered new exit (range 4) 1714 | -10/Materials | Entered Mines 1898 | -10/Mines | Learned location of Storage (-8) 1970 | -10/Mines | Assembled infested the area 1975 | -10/Mines | Assisted by a Guerilla fighting off Assembled 2245 | -10/Mines | Learned Materials garrison access intel 2371 | -10/Mines | Discovered new exit (range 7) 2606 | -10/Mines | Learned Materials emergency access door positions 2625 | -10/Mines | Deemed a non-threat by the Exiles lab entrance 2625 | -10/Mines | Discovered new exit (range 5) 2783 | -10/Mines | Joined a pair of Derelicts in attacking an 0b10 outpost 3040 | -10/Mines | Entered Exiles 3080 | -10/Exiles | Met 8R-AWN 3096 | -10/Exiles | Build established: Scavenger-Mutant 3106 | -10/Exiles | Met EX-HEX 3152 | -10/Exiles | Met EX-BIN 3172 | -10/Exiles | Aligned with FarCom system 3173 | -10/Exiles | Given EX-Vault access code 3210 | -10/Exiles | Opened EX-Vault 3224 | -10/Exiles | Found Superbattery 3228 | -10/Exiles | Found PSU Rigger 3236 | -10/Exiles | Found Modified TNC 3270 | -10/Exiles | Warned to stay clear of 0b10 Research branches 3314 | -10/Exiles | Met EX-DEC 3328 | -10/Exiles | Learned location of Zion (-6) 3393 | -10/Exiles | Visited The Gauntlet 3527 | -10/Exiles | Build established: Mutant 3699 | -10/Exiles | Discovered new exit (range 12) 3717 | -10/Exiles | Stole three prototypes: Superbattery, Modified TNC, PSU Rigger 3717 | -10/Exiles | Entered Mines 3732 | -9/Mines | Learned Materials terminal intel 3734 | -9/Mines | Learned location of 1 exit from Lower Caves 3746 | -9/Mines | Assisted by bots powering up and referring to "LRC-V3" 3860 | -9/Mines | Discovered new exit (range 10) 4116 | -9/Mines | Found a damaged Exp. Sensor Array with a note attached 4119 | -9/Mines | Found Prototype Device 4443 | -9/Mines | Discovered new exit (range 4) 4798 | -9/Mines | Entered Materials 4798 | -8/Materials | Accompanied by 2 allies 4798 | -8/Materials | Evolved 4 slots: Utility x3, Weapon x1 4800 | -8/Materials | Loaded intel: 12 terminal locations 4801 | -8/Materials | Loaded intel: 1 garrison access location 5577 | -8/Materials | Identified Exp. Sensor Array 5631 | -8/Materials | Build established: Scavenger-Mutant 5906 | -8/Materials | Discovered new exit (range 9) 6060 | -8/Materials | Repaired Hvy. Assault Rifle 6238 | -8/Materials | Discovered new exit (range 16) 6382 | -8/Materials | Discovered new exit (range 16) 6743 | -8/Materials | Destroyed 7 combat bots 6755 | -8/Materials | Identified exit to Garrison 6757 | -8/Materials | Entered Garrison 6845 | -8/Garrison | Triggered checkpoint 6937 | -8/Garrison | Discovered new exit (range 13) 7012 | -8/Garrison | Build established: Hauler-Mutant 7028 | -8/Garrison | Triggered checkpoint 7126 | -8/Garrison | Triggered checkpoint 7165 | -8/Garrison | Discovered new exit (range 15) 7203 | -8/Garrison | Installed Relay Interface Framework 7332 | -8/Garrison | Garrison Relay disabled 7334 | -8/Garrison | Lost 3 parts (3w) 7396 | -8/Garrison | Triggered checkpoint 7676 | -8/Garrison | Triggered checkpoint 7698 | -8/Garrison | Garrison Relay disabled 7782 | -8/Garrison | Build established: Bothacker-Mutant 7944 | -8/Garrison | Triggered checkpoint 8013 | -8/Garrison | Garrison Relay disabled 8164 | -8/Garrison | Phase Generator disabled 8326 | -8/Garrison | Spotted B-75 Beast 8326 | -8/Garrison | Spotted B-75 Beast 8586 | -8/Garrison | Entered Factory 8586 | -7/Factory | Evolved 2 slots: Utility x2 8588 | -7/Factory | FarCom data flow suspended 8664 | -7/Factory | Identified exit to Lower Caves 8901 | -7/Factory | Build established: Bothacker-Tank 9740 | -7/Factory | Discovered new exit (range 14) 9845 | -7/Factory | Build established: Bothacker-Skirmisher 10371 | -7/Factory | Discovered new exit (range 12) 10393 | -7/Factory | Identified exit to Factory 11017 | -7/Factory | Fabricated HERF Cannon? 11060 | -7/Factory | Build established: Bothacker-Mutant 11072 | -7/Factory | Fabricated Imp. Heavy Treads? 11386 | -7/Factory | First assault squad dispatched 11716 | -7/Factory | Entered Lower Caves 11717 | -7/Lower Caves | Identified exit to Lower Caves 11921 | -7/Lower Caves | Spotted FJ-40F(f) 11922 | -7/Lower Caves | Encountered a Master Thief 11922 | -7/Lower Caves | PSU Rigger stolen by Master Thief 11976 | -7/Lower Caves | Encountered a Warlord checkpoint 12253 | -7/Lower Caves | Build established: Hauler-Mutant 12639 | -7/Lower Caves | Entered another Lower Caves area 12640 | -7/Lower Caves | Encountered a Warlord checkpoint 12696 | -7/Lower Caves | Discovered exit to Factory (range 8) 13147 | -7/Lower Caves | Spotted OR-MA3(f) 13148 | -7/Lower Caves | Encountered a Master Thief 13149 | -7/Lower Caves | Spotted VU-8M4(f) 13150 | -7/Lower Caves | Encountered a Master Thief 13162 | -7/Lower Caves | Imp. Heavy Treads stolen by Master Thief 13169 | -7/Lower Caves | Destroyed VU-8M4(f) 13407 | -7/Lower Caves | Attracted the attention of an 0b10 checkpoint 13437 | -7/Lower Caves | System corruption reached 10% 13444 | -7/Lower Caves | Spotted RY-YOT(f) 13445 | -7/Lower Caves | Encountered a Master Thief 13448 | -7/Lower Caves | Superbattery stolen by Master Thief 13450 | -7/Lower Caves | Spotted 5U-3FE(f) 13451 | -7/Lower Caves | Encountered a Master Thief 13451 | -7/Lower Caves | HERF Cannon stolen by Master Thief 13467 | -7/Lower Caves | Lost 3 parts (1p1u1w) 13523 | -7/Lower Caves | Spotted OJ-8GX(f) 13525 | -7/Lower Caves | Encountered a Master Thief 13555 | -7/Lower Caves | Self-destructed Last Messages --------------- 13452_ Acquired 4 matter. 13453_ System corrupted: Adv. EMP Blaster targeting data glitched. 13454_ Acquired 5 matter. 13455_ Acquired 10 matter. 13457_ System corrupted: Heat flow error (+140). 13473_ Acquired Imp. Heavy Treads. 13476_ Acquired Lgt. Treads. 13480_ Acquired 10 matter. 13484_ System corrupted: Matter fused (-8). 13484_ Acquired Imp. Heat Sink. 13485_ Acquired 6 matter. 13487_ Acquired 5 matter. 13489_ Acquired 7 matter. 13527_ System corrupted: FCS attempts to trigger Autogun. 13527_ System corrupted: Autogun misfires. 13529_ OJ-8GX(f) suffers critical hit. 13529_ Destroyed Master Tearclaws. 13531_ Destroyed Maneuvering Thrusters. 13543_ System corrupted: Prc. Shock Rifle failed to cycle. 13554_ %YC VNF71KVQRIP/GYJV075TSC0V|1UCPZRIPF Map ----- +----------------------------------------------------+ | ?????????????????????????????????????????????????? | | ?????????????????????????????????????????????????? | | ?????????????????????????????????????????????????? | | ?????????????????????????????????????????????????? | | ?????????????????????????????????????????????????? | | ?????????????????????????????????????????????????? | | ????????????????????????????????????????????????? | | ???????????????????????????????????????????????? | | ???????????????????????????????????????????????# | | ?????????????????????????????????????????????## | | ????????????????????????? ??????????????#### ? | | ????????????????????????# ?????????????## ?? | | ????????????????????????# ???? ??????## #??? | | ????????????????????????# #?? ??????# ##### | | ????????????????????????# ### # ??????# ## # | | ????????????????????????# # # # ###### # | | ?????????????????#####??# # # | | ?????????????????? ### # # | | ???????????????????? ######## ## # | | ????????????????????? ??##### ### | | ?????????????????????? ??## ## ##?# | | ???????????????????????# ??## ##??# % | | ?????????????????????### #??# ##??# | | ???????????????####### #### #### | | ???????????????# ## # | | ????????????# g @ # | | ?????????? gg # | | ??????????# ## ### | | ??????????? ???##??# | | ??????????? #### ????????# ## | | ??????????????????????????# ######### | | ??????????????????????????####???????## # | | ??????????????????????????????????????## ## | | ???????????????????????????????????????# #?? | | ???????????????????????????????????????# ??? | | ???????????????????????????????????????? ??? | | ??????????????????????????????????????????#??????? | | ?????????????????????????????????????????????????? | | ?????????????????????????????????????????????????? | | ?????????????????????????????????????????????????? | | ?????????????????????????????????????????????????? | | ?????????????????????????????????????????????????? | | ?????????????????????????????????????????????????? | | ?????????????????????????????????????????????????? | | ?????????????????????????????????????????????????? | | ?????????????????????????????????????????????????? | | ?????????????????????????????????????????????????? | | ?????????????????????????????????????????????????? | | ?????????????????????????????????????????????????? | | ?????????????????????????????????????????????????? | +----------------------------------------------------+ Best States ------------- Heat Dissipation 61 Energy Generation 18 Energy Capacity 2150 Matter Stores 300 Matter Capacity 300 Sight Range 16 Robot Scan Range 30 Terrain Scan Density 10 Armor Coverage 150 Weapon Cycling 15 Melee Speed Boost 30 Evasion (%) 40 Recoil Reduction 2 Offensive Hacking 10 Defensive Hacking 10 Relay Coupler Types 46 Relay Coupler Value 2 Item Schematics ----------------- Lrg. Storage Unit | -10/Materials | Hacked Cmb. Airjet | -8/Materials | Scanalyzed HERF Cannon | -7/Factory | Downloaded Imp. Heavy Treads | -7/Factory | Downloaded Robot Schematics ------------------ None Fabricated ------------ HERF Cannon | x1 | -7/Factory | Preloaded Imp. Heavy Treads | x2 | -7/Factory | Preloaded Alien Tech Used ----------------- None Achievements -------------- None Challenges ------------ None Game ------ Seed MinesnifferReflectiveSword Manual? 0 Play Time 01:34:53 Cumulative 113.8 hours Start 2020.10.26 @ 09:04:24 End 2020.10.26 @ 10:38:45 Sessions 1 Manual Loads 0 Difficulty Rogue Special Mode None Game No. 39 Rogue 24 Adventurer 15 Explorer 0 Win Type - Total 3 Types 1/0/1/1/0/0/0/0/0 Lore% 74 Gallery% 72 Achievement% 60 Wizard Run 0 Options --------- ASCII 0 Keyboard 0 Movement Numpad Keybinds 0 Fullscreen 1 Font 18/SmallcapsGlow Map View 76x50 Tactical HUD 1 Map Filters NONE Filters NONE Steam 1 RUN: bed87414-77db-4de4-a938-7c2dd9876a03